fUST/lending_fUST_20250630
["ID","MTS","AMOUNT","RATE_DAILY","PERIOD"]
[368682906,1751295046321,-1751.21,0.00021247,2]
[368682907,1751295046330,-1925.04,0.00021247,2]
[368682908,1751295046340,-460.0,0.00021247,2]
[368682909,1751295046350,-460.0,0.00021247,2]
[368682910,1751295046364,-492.4,0.00021247,2]
[368682911,1751295046375,-745.08,0.00021247,2]
[368682913,1751295046384,-460.0,0.00021247,2]
[368682914,1751295046394,-880.56,0.00021247,2]
[368682915,1751295046404,-460.0,0.00021247,2]
[368682916,1751295046414,-460.0,0.00021248,2]
[368682917,1751295046423,-928.96,0.00021248,2]
[368682919,1751295046434,-500.07,0.00021248,2]
[368682920,1751295046443,-460.0,0.00021248,2]
[368682921,1751295046453,-1588.63,0.00021248,2]
[368682922,1751295046463,-460.0,0.00021248,2]
[368682923,1751295046472,-975.31,0.00021248,2]
[368682924,1751295046481,-460.0,0.00021248,2]
[368682926,1751295046491,-2489.81,0.00021248,2]
[368682927,1751295046501,-429.0,0.00021315,2]
[368682928,1751295046510,-429.0,0.00021315,2]
[368682929,1751295046519,-2444.90048817,0.00021348,5]
[368682930,1751295046529,-200.0,0.0002139,2]
[368682932,1751295046538,-1665.7,0.00021419,2]
[368682933,1751295046547,-15011.85133966,0.00021441,2]
[368682934,1751295046557,-460.0,0.0002152,2]
[368682935,1751295046567,-1632.9,0.0002152,2]
[368682936,1751295046576,-460.0,0.0002152,2]
[368682937,1751295046586,-1488.37,0.0002152,2]
[368682939,1751295046595,-1271.37,0.0002152,2]
[368682940,1751295046604,-2582.23,0.0002152,2]
[368682941,1751295046614,-688.78,0.0002152,2]
[368682942,1751295046623,-819.55,0.0002152,2]
[368682943,1751295046633,-869.98,0.0002152,2]
[368682944,1751295046642,-460.0,0.0002152,2]
[368682946,1751295046651,-460.0,0.00021521,2]
[368682947,1751295046661,-429.50189916,0.00021521,2]
[368682948,1751295046671,-460.0,0.00021521,2]
[368682949,1751295046679,-468.95,0.00021521,2]
[368682950,1751295046688,-1751.21,0.00021521,2]
[368682952,1751295046697,-1925.04,0.00021521,2]
[368682953,1751295046707,-460.0,0.00021521,2]
[368682954,1751295046717,-460.0,0.00021521,2]
[368682955,1751295046726,-492.4,0.00021521,2]
[368682956,1751295046736,-745.08,0.00021521,2]
[368682957,1751295046745,-460.0,0.00021521,2]
[368682959,1751295046755,-880.56,0.00021521,2]
[368682960,1751295046764,-460.0,0.00021521,2]
[368682961,1751295046774,-460.0,0.00021522,2]
[368682962,1751295046784,-928.96,0.00021522,2]
[368682963,1751295046794,-500.07,0.00021522,2]
[368682964,1751295046805,-460.0,0.00021522,2]
[368682965,1751295046815,-1588.63,0.00021522,2]
[368682967,1751295046824,-460.0,0.00021522,2]
[368682968,1751295046834,-975.31,0.00021522,2]
[368682969,1751295046844,-460.0,0.00021522,2]
[368682970,1751295046853,-2489.81,0.00021522,2]
[368682971,1751295046862,-2444.90048817,0.00021555,5]
[368682972,1751295046872,-632.185012,0.0002156,4]
[368682973,1751295046883,-2000.0,0.000216,2]
[368682974,1751295046893,-223.0315306,0.00021638,2]
[368682975,1751295046902,-1665.7,0.00021693,2]
[368682976,1751295046912,-151.0,0.000217,3]
[368682977,1751295046922,-151.0,0.000217,3]
[368682978,1751295046931,-151.0,0.000217,3]
[368682979,1751295046941,-2444.90048817,0.00021762,5]
[368682980,1751295046950,-611.32164072,0.00021773,2]
[368682983,1751295047088,-500.0,0.00021773,2]
[368682984,1751295047099,-500.0,0.00021773,2]
[368682985,1751295047108,-500.0,0.00021773,2]
[368682986,1751295047118,-500.0,0.00021773,2]
[368682987,1751295047129,-500.0,0.00021773,2]
[368682988,1751295047138,-500.0,0.00021773,2]
[368682989,1751295047148,-500.0,0.00021773,2]
[368682990,1751295047158,-500.0,0.00021773,2]
[368682991,1751295047167,-500.0,0.00021773,2]
[368682992,1751295047176,-500.0,0.00021773,2]
[368682994,1751295047186,-500.0,0.00021773,2]
[368682995,1751295047195,-500.0,0.00021773,2]
[368682996,1751295047205,-500.0,0.00021773,2]
[368682997,1751295047214,-500.0,0.00021773,2]
[368682998,1751295047223,-346.00506352,0.00021773,2]
[368683000,1751295047236,-153.99493648,0.00021773,2]
[368683001,1751295047246,-500.0,0.00021773,2]
[368683002,1751295047255,-500.0,0.00021773,2]
[368683003,1751295047265,-115.92889805,0.00021773,2]
[368683005,1751295047285,-665.62307737,0.00020051,2]
[368683006,1751295047295,-384.07110195,0.00021773,2]
[368683007,1751295047305,-635.35528523,0.00021773,2]
[368683008,1751295047315,-500.0,0.00021773,2]
[368683009,1751295047325,-500.0,0.00021773,2]
[368683010,1751295047335,-500.0,0.00021773,2]
[368683012,1751295047344,-500.0,0.00021773,2]
[368683013,1751295047355,-500.0,0.00021773,2]
[368683014,1751295047366,-504.80822035,0.00021773,2]
[368683015,1751295047375,-382.07952105,0.00021773,2]
[368683016,1751295047387,-500.0,0.00021773,2]
[368683018,1751295047398,-500.0,0.00021773,2]
[368683019,1751295047408,-500.0,0.00021773,2]
[368683020,1751295047419,-500.0,0.00021773,2]
[368683021,1751295047430,-500.0,0.00021773,2]
[368683026,1751295047648,-500.0,0.00021773,2]
[368683027,1751295047658,-503.80372341,0.00021773,2]
[368683029,1751295047668,-500.0,0.00021773,2]
[368683030,1751295047677,-500.0,0.00021773,2]
[368683031,1751295047687,-500.0,0.00021773,2]
[368683032,1751295047697,-92.81554273,0.00021773,2]
[368683033,1751295047709,-407.18445727,0.00021773,2]
[368683034,1751295047719,-500.0,0.00021773,2]
[368683035,1751295047729,-239.35675173,0.00021773,2]
[368683036,1751295047742,-260.64324827,0.00021773,2]
[368683037,1751295047753,-220.10299315,0.00021773,2]
[368683038,1751295047762,-500.0,0.00021773,2]
[368683039,1751295047772,-158.07011865,0.00021773,2]
[368683280,1751295152839,4237.60305606,0.00017789,2]
[368683281,1751295152866,6249.77734854,0.00017789,2]
[368683283,1751295209589,3750.22265146,0.00017687,2]
[368683284,1751295209612,5724.84255964,0.00017687,2]
[368683285,1751295266458,189.03396553,0.00017686,2]
[368683286,1751295272323,-2000000.0,0.00025041,20]
[368683287,1751295276692,-2000000.0,0.00025041,20]
[368683290,1751295364771,4086.12347483,0.00018031,2]
[368683291,1751295364796,10000.0,0.00018031,2]
[368683292,1751295364822,10000.0,0.00018031,2]
[368683293,1751295364847,10000.0,0.00018031,2]
[368683294,1751295364872,10000.0,0.00018031,2]
[368683295,1751295364897,6031.54070727,0.00018031,2]
[368683298,1751295567685,189.453247,0.00017684,2]
[368683299,1751295568107,244.51248521,0.00017685,2]
[368683302,1751295593370,3534.49356052,0.00017481,2]
[368683303,1751295593394,6465.50643948,0.00017481,2]
[368683304,1751295610482,3534.49356052,0.00017595,2]
[368683305,1751295610507,1504.48689137,0.00017595,2]
[368683311,1751295744308,774.492014,0.0001737,2]
[368683318,1751295869450,165.457205,0.00017684,2]
[368683319,1751295869754,264.57644916,0.00017685,2]
[368683325,1751295926029,266.664655,0.00013699,2]
[368683328,1751295946112,-300.0,0.0001813,2]
[368683329,1751295946136,-460.0,0.00018131,2]
[368683330,1751295946159,-460.0,0.00018131,2]
[368683331,1751295946181,-590.23,0.00018131,2]
[368683332,1751295946203,-460.0,0.00018131,2]
[368683333,1751295946223,-460.0,0.00018131,2]
[368683334,1751295946245,-926.7,0.00018131,2]
[368683335,1751295946266,-460.0,0.00018131,2]
[368683336,1751295946286,-460.0,0.00018231,2]
[368683337,1751295946308,-460.0,0.00018231,2]
[368683338,1751295946330,-460.0,0.00018231,2]
[368683339,1751295946353,-460.0,0.00018231,2]
[368683340,1751295946380,-460.0,0.00018231,2]
[368683341,1751295946404,-460.0,0.00018231,2]
[368683342,1751295946426,-460.0,0.00018231,2]
[368683343,1751295946449,-485.39,0.00018231,2]
[368683344,1751295946472,-460.0,0.00018231,2]
[368683345,1751295946493,-460.0,0.00018231,2]
[368683346,1751295946691,-476.35,0.00018231,2]
[368683347,1751295946713,-460.0,0.00018232,2]
[368683348,1751295946734,-460.0,0.00018232,2]
[368683349,1751295946755,-460.0,0.00018232,2]
[368683350,1751295946779,-314.01975068,0.00018232,2]
[368683351,1751295946799,-460.0,0.00018232,2]
[368683352,1751295946821,-684.26,0.00018232,2]
[368683353,1751295946842,-460.0,0.00018232,2]
[368683354,1751295946866,-1734.18,0.00018232,2]
[368683355,1751295946887,-460.0,0.00018232,2]
[368683356,1751295946908,-460.0,0.00018232,2]
[368683357,1751295946930,-541.9,0.00018232,2]
[368683358,1751295946952,-460.0,0.00018232,2]
[368683359,1751295946974,-527.72,0.00018232,2]
[368683360,1751295946996,-460.0,0.00018232,2]
[368683361,1751295947017,-460.0,0.00018232,2]
[368683362,1751295947039,-460.0,0.00018232,2]
[368683363,1751295947060,-460.0,0.00018233,2]
[368683364,1751295947080,-460.0,0.00018234,2]
[368683365,1751295947100,-234.95442889,0.00018234,2]
[368683366,1751295947124,-460.0,0.00018403,2]
[368683367,1751295947146,-1019.53,0.00018403,2]
[368683368,1751295947168,-1005.55,0.00018403,2]
[368683369,1751295947190,-460.0,0.00018403,2]
[368683370,1751295947211,-741.63,0.00018403,2]
[368683371,1751295947233,-868.22,0.00018403,2]
[368683372,1751295947256,-1506.3,0.00018403,2]
[368683373,1751295947277,-478.08,0.00018403,2]
[368683374,1751295947298,-460.0,0.00018404,2]
[368683375,1751295947322,-460.0,0.00018404,2]
[368683376,1751295947344,-465.95,0.00018404,2]
[368683377,1751295947369,-460.0,0.00018404,2]
[368683378,1751295947391,-460.0,0.00018404,2]
[368683379,1751295947413,-460.0,0.00018404,2]
[368683380,1751295947434,-1021.54,0.00018404,2]
[368683381,1751295947457,-460.0,0.00018405,2]
[368683382,1751295947478,-460.0,0.00018405,2]
[368683383,1751295947499,-590.23,0.00018405,2]
[368683384,1751295947522,-926.7,0.00018405,2]
[368683385,1751295947542,-698.42562568,0.00018405,2]
[368683386,1751295947563,-460.0,0.00018405,2]
[368683387,1751295947584,-460.0,0.00018505,2]
[368683388,1751295947607,-460.0,0.00018505,2]
[368683389,1751295947630,-542.67,0.00018505,2]
[368683390,1751295947651,-460.0,0.00018505,2]
[368683391,1751295947673,-460.0,0.00018505,2]
[368683392,1751295947693,-460.0,0.00018505,2]
[368683393,1751295947714,-460.0,0.00018505,2]
[368683394,1751295947736,-460.0,0.00018505,2]
[368683395,1751295947758,-460.0,0.00018505,2]
[368683396,1751295947783,-476.35,0.00018505,2]
[368683397,1751295947804,-460.0,0.00018506,2]
[368683398,1751295947826,-684.26,0.00018506,2]
[368683399,1751295947847,-1734.18,0.00018506,2]
[368683400,1751295947873,-460.0,0.00018506,2]
[368683401,1751295947894,-541.9,0.00018506,2]
[368683402,1751295947915,-460.0,0.00018506,2]
[368683403,1751295947937,-460.0,0.00018506,2]
[368683404,1751295947959,-460.0,0.00018506,2]
[368683405,1751295947979,-460.0,0.00018507,2]
[368683406,1751295948000,-460.0,0.00018677,2]
[368683407,1751295948025,-1019.53,0.00018677,2]
[368683408,1751295948049,-1005.55,0.00018677,2]
[368683409,1751295948072,-460.0,0.00018677,2]
[368683410,1751295948094,-500.0,0.00018677,2]
[368683411,1751295948117,-741.63,0.00018677,2]
[368683412,1751295948140,-868.22,0.00018677,2]
[368683413,1751295948163,-1506.3,0.00018677,2]
[368683414,1751295948185,-478.08,0.00018677,2]
[368683415,1751295948208,-460.0,0.00018678,2]
[368683416,1751295948229,-460.0,0.00018678,2]
[368683417,1751295948251,-271.3180309,0.00018678,2]
[368683418,1751295948272,-460.0,0.00018678,2]
[368683419,1751295948293,-1021.54,0.00018678,2]
[368683420,1751295948315,-460.0,0.00018679,2]
[368683421,1751295948338,-460.0,0.00018679,2]
[368683422,1751295948361,-590.23,0.00018679,2]
[368683423,1751295948383,-926.7,0.00018679,2]
[368683424,1751295948404,-582.9734083,0.00018679,2]
[368683425,1751295948426,-460.0,0.00018779,2]
[368683426,1751295948447,-460.0,0.00018779,2]
[368683427,1751295948470,-542.67,0.00018779,2]
[368683428,1751295948492,-460.0,0.00018779,2]
[368683429,1751295948513,-460.0,0.00018779,2]
[368683430,1751295948535,-460.0,0.00018779,2]
[368683431,1751295948556,-460.0,0.00018779,2]
[368683432,1751295948579,-460.0,0.00018779,2]
[368683433,1751295948601,-460.0,0.00018779,2]
[368683434,1751295948623,-476.35,0.00018779,2]
[368683435,1751295948644,-6208.23835812,0.0001878,2]
[368683436,1751295948664,-460.0,0.0001878,2]
[368683437,1751295948685,-460.0,0.0001878,2]
[368683438,1751295948706,-480.14,0.0001878,2]
[368683439,1751295948727,-684.26,0.0001878,2]
[368683440,1751295948748,-1734.18,0.0001878,2]
[368683441,1751295948773,-460.0,0.0001878,2]
[368683442,1751295948794,-541.9,0.0001878,2]
[368683443,1751295948816,-460.0,0.0001878,2]
[368683444,1751295948837,-460.0,0.0001878,2]
[368683445,1751295948863,-460.0,0.0001878,2]
[368683446,1751295948884,-460.0,0.00018781,2]
[368683447,1751295948906,-1019.53,0.00018951,2]
[368683448,1751295948928,-1005.55,0.00018951,2]
[368683449,1751295948951,-460.0,0.00018951,2]
[368683450,1751295948973,-741.63,0.00018951,2]
[368683451,1751295948995,-868.22,0.00018951,2]
[368683452,1751295949018,-1506.3,0.00018951,2]
[368683453,1751295949039,-478.08,0.00018951,2]
[368683454,1751295949062,-460.0,0.00018952,2]
[368683455,1751295949084,-460.0,0.00018952,2]
[368683456,1751295949106,-460.0,0.00018952,2]
[368683457,1751295949128,-1021.54,0.00018952,2]
[368683458,1751295949152,-545.04,0.00018953,2]
[368683459,1751295949176,-460.0,0.00018953,2]
[368683460,1751295949198,-590.23,0.00018953,2]
[368683461,1751295949221,-926.7,0.00018953,2]
[368683462,1751295949243,-460.0,0.00019053,2]
[368683463,1751295949266,-460.0,0.00019053,2]
[368683464,1751295949288,-542.67,0.00019053,2]
[368683465,1751295949310,-460.0,0.00019053,2]
[368683466,1751295949334,-460.0,0.00019053,2]
[368683467,1751295949355,-460.0,0.00019053,2]
[368683468,1751295949380,-460.0,0.00019053,2]
[368683469,1751295949401,-460.0,0.00019053,2]
[368683470,1751295949424,-476.35,0.00019053,2]
[368683471,1751295949445,-684.26,0.00019054,2]
[368683472,1751295949466,-1734.18,0.00019054,2]
[368683473,1751295949488,-460.0,0.00019054,2]
[368683474,1751295949509,-541.9,0.00019054,2]
[368683475,1751295949530,-460.0,0.00019054,2]
[368683476,1751295949554,-460.0,0.00019054,2]
[368683477,1751295949575,-460.0,0.00019054,2]
[368683478,1751295949596,-460.0,0.00019055,2]
[368683479,1751295949617,-356.74298,0.00019178,2]
[368683480,1751295949639,-1019.53,0.00019225,2]
[368683481,1751295949660,-1005.55,0.00019225,2]
[368683482,1751295949682,-460.0,0.00019225,2]
[368683483,1751295949704,-741.63,0.00019225,2]
[368683484,1751295949727,-868.22,0.00019225,2]
[368683485,1751295949749,-1506.3,0.00019225,2]
[368683486,1751295949775,-478.08,0.00019225,2]
[368683487,1751295949800,-460.0,0.00019226,2]
[368683488,1751295949822,-460.0,0.00019226,2]
[368683489,1751295949847,-460.0,0.00019226,2]
[368683490,1751295949873,-1021.54,0.00019226,2]
[368683491,1751295949896,-460.0,0.00019227,2]
[368683492,1751295949917,-590.23,0.00019227,2]
[368683493,1751295949940,-926.7,0.00019227,2]
[368683494,1751295949960,-460.0,0.00019327,2]
[368683495,1751295949983,-460.0,0.00019327,2]
[368683496,1751295950005,-542.67,0.00019327,2]
[368683497,1751295950026,-460.0,0.00019327,2]
[368683498,1751295950048,-299.37,0.00019327,2]
[368683499,1751295950068,-460.0,0.00019327,2]
[368683500,1751295950090,-460.0,0.00019327,2]
[368683501,1751295950112,-460.0,0.00019327,2]
[368683502,1751295950133,-476.35,0.00019327,2]
[368683503,1751295950155,-684.26,0.00019328,2]
[368683504,1751295950278,-1734.18,0.00019328,2]
[368683505,1751295950325,-460.0,0.00019328,2]
[368683506,1751295950348,-541.9,0.00019328,2]
[368683507,1751295950370,-460.0,0.00019328,2]
[368683508,1751295950392,-460.0,0.00019328,2]
[368683509,1751295950413,-460.0,0.00019328,2]
[368683510,1751295950435,-460.0,0.00019329,2]
[368683511,1751295950455,-698.42562564,0.00019333,2]
[368683512,1751295950475,-12569.13231816,0.00019354,2]
[368683513,1751295950496,-230.31346914,0.00019354,2]
[368683514,1751295950515,-160.0,0.00019354,2]
[368683515,1751295950534,-214.99848635,0.00019354,2]
[368683516,1751295950554,-160.0,0.00019354,2]
[368683517,1751295950574,-837.16779106,0.00019354,2]
[368683518,1751295950594,-847.41730813,0.00019354,2]
[368683519,1751295950614,-160.0,0.00019354,2]
[368683520,1751295950634,-213.84631524,0.00019354,2]
[368683521,1751295950653,-160.0,0.00019354,2]
[368683522,1751295950674,-1019.53,0.00019499,2]
[368683523,1751295950696,-1005.55,0.00019499,2]
[368683524,1751295950716,-183.81,0.00019499,2]
[368683525,1751295950738,-741.63,0.00019499,2]
[368683526,1751295950760,-868.22,0.00019499,2]
[368683527,1751295950784,-1506.3,0.00019499,2]
[368683528,1751295950806,-478.08,0.00019499,2]
[368683529,1751295950829,-460.0,0.000195,2]
[368683530,1751295950854,-322.56531096,0.000195,2]
[368683531,1751295950876,-460.0,0.000195,2]
[368683532,1751295950897,-1021.54,0.000195,2]
[368683533,1751295950918,-460.0,0.00019501,2]
[368683534,1751295950940,-590.23,0.00019501,2]
[368683535,1751295950962,-926.7,0.00019501,2]
[368683536,1751295950983,-460.0,0.00019601,2]
[368683537,1751295951004,-460.0,0.00019601,2]
[368683538,1751295951025,-542.67,0.00019601,2]
[368683539,1751295951048,-188.78,0.00019601,2]
[368683540,1751295951070,-460.0,0.00019601,2]
[368683541,1751295951091,-460.0,0.00019601,2]
[368683542,1751295951113,-460.0,0.00019601,2]
[368683543,1751295951135,-476.35,0.00019601,2]
[368683544,1751295951156,-684.26,0.00019602,2]
[368683545,1751295951177,-1734.18,0.00019602,2]
[368683546,1751295951198,-460.0,0.00019602,2]
[368683547,1751295951220,-541.9,0.00019602,2]
[368683548,1751295951241,-460.0,0.00019602,2]
[368683549,1751295951262,-460.0,0.00019602,2]
[368683550,1751295951282,-460.0,0.00019602,2]
[368683551,1751295951303,-460.0,0.00019603,2]
[368683552,1751295951324,-727.17,0.00019763,3]
[368683553,1751295951346,-1019.53,0.00019773,2]
[368683554,1751295951369,-1005.55,0.00019773,2]
[368683555,1751295951390,-741.63,0.00019773,2]
[368683556,1751295951412,-868.22,0.00019773,2]
[368683557,1751295951433,-1506.3,0.00019773,2]
[368683558,1751295951455,-478.08,0.00019773,2]
[368683559,1751295951476,-460.0,0.00019774,2]
[368683560,1751295951498,-460.0,0.00019774,2]
[368683561,1751295951518,-1021.54,0.00019774,2]
[368683562,1751295951539,-460.0,0.00019775,2]
[368683563,1751295951561,-590.23,0.00019775,2]
[368683564,1751295951584,-926.7,0.00019775,2]
[368683565,1751295951604,-420.0,0.00019779,2]
[368683566,1751295951626,-460.0,0.00019875,2]
[368683567,1751295951647,-460.0,0.00019875,2]
[368683568,1751295951671,-542.67,0.00019875,2]
[368683569,1751295951691,-460.0,0.00019875,2]
[368683570,1751295951714,-460.0,0.00019875,2]
[368683571,1751295951737,-460.0,0.00019875,2]
[368683572,1751295951760,-476.35,0.00019875,2]
[368683573,1751295951788,-684.26,0.00019876,2]
[368683574,1751295951811,-1734.18,0.00019876,2]
[368683575,1751295951832,-460.0,0.00019876,2]
[368683576,1751295951857,-541.9,0.00019876,2]
[368683577,1751295951880,-570.75559468,0.00019876,2]
[368683578,1751295951903,-460.0,0.00019876,2]
[368683579,1751295951926,-460.0,0.00019876,2]
[368683580,1751295951947,-460.0,0.00019877,2]
[368683581,1751295951976,-2146.70622483,0.000199,2]
[368683582,1751295952000,-1019.53,0.00020047,2]
[368683583,1751295952024,-1005.55,0.00020047,2]
[368683584,1751295952046,-741.63,0.00020047,2]
[368683585,1751295952071,-868.22,0.00020047,2]
[368683586,1751295952093,-1506.3,0.00020047,2]
[368683587,1751295952115,-478.08,0.00020047,2]
[368683588,1751295952137,-460.0,0.00020048,2]
[368683589,1751295952158,-460.0,0.00020048,2]
[368683590,1751295952178,-1021.54,0.00020048,2]
[368683591,1751295952201,-460.0,0.00020049,2]
[368683592,1751295952223,-590.23,0.00020049,2]
[368683593,1751295952245,-926.7,0.00020049,2]
[368683594,1751295952269,-2146.7062248,0.00020107,2]
[368683595,1751295952289,-500.0,0.00020109,2]
[368683596,1751295952311,-460.0,0.00020149,2]
[368683597,1751295952335,-388.11,0.00020149,2]
[368683598,1751295952356,-542.67,0.00020149,2]
[368683599,1751295952377,-460.0,0.00020149,2]
[368683600,1751295952399,-460.0,0.00020149,2]
[368683601,1751295952420,-460.0,0.00020149,2]
[368683602,1751295952442,-476.35,0.00020149,2]
[368683603,1751295952463,-684.26,0.0002015,2]
[368683604,1751295952484,-1734.18,0.0002015,2]
[368683605,1751295952505,-460.0,0.0002015,2]
[368683606,1751295952526,-541.9,0.0002015,2]
[368683607,1751295952547,-460.0,0.0002015,2]
[368683608,1751295952568,-341.81,0.0002015,2]
[368683609,1751295952589,-460.0,0.00020151,2]
[368683610,1751295952611,-266.664655,0.00020187,2]
[368683611,1751295952634,-207.4,0.00020202,2]
[368683612,1751295952655,-698.42562564,0.00020261,2]
[368683613,1751295952680,-2146.7062248,0.00020314,3]
[368683614,1751295952703,-1019.53,0.00020321,2]
[368683615,1751295952726,-1005.55,0.00020321,2]
[368683616,1751295952748,-741.63,0.00020321,2]
[368683617,1751295952772,-868.22,0.00020321,2]
[368683618,1751295952794,-1506.3,0.00020321,2]
[368683619,1751295952817,-478.08,0.00020321,2]
[368683620,1751295952841,-460.0,0.00020322,2]
[368683621,1751295952864,-460.0,0.00020322,2]
[368683622,1751295952885,-1021.54,0.00020322,2]
[368683623,1751295952907,-460.0,0.00020323,2]
[368683624,1751295952930,-590.23,0.00020323,2]
[368683625,1751295952953,-926.7,0.00020323,2]
[368683626,1751295952975,-532.49846188,0.00020324,2]
[368683627,1751295952996,-460.0,0.00020423,2]
[368683628,1751295953019,-542.67,0.00020423,2]
[368683629,1751295953040,-460.0,0.00020423,2]
[368683630,1751295953064,-460.0,0.00020423,2]
[368683631,1751295953086,-460.0,0.00020423,2]
[368683632,1751295953109,-476.35,0.00020423,2]
[368683633,1751295953131,-684.26,0.00020424,2]
[368683634,1751295953152,-1734.18,0.00020424,2]
[368683635,1751295953174,-541.9,0.00020424,2]
[368683636,1751295953196,-460.0,0.00020424,2]
[368683637,1751295953218,-460.0,0.00020424,2]
[368683638,1751295953239,-460.0,0.00020425,2]
[368683639,1751295953261,-500.0,0.00020431,2]
[368683640,1751295953283,-500.0,0.00020431,2]
[368683641,1751295953304,-500.0,0.00020458,2]
[368683642,1751295953327,-500.0,0.00020458,2]
[368683643,1751295953349,-358.0,0.00020475,2]
[368683644,1751295953371,-500.0,0.00020486,2]
[368683645,1751295953390,-500.0,0.00020486,2]
[368683646,1751295953411,-380.0,0.00020513,2]
[368683647,1751295953431,-500.0,0.00020513,2]
[368683648,1751295953455,-2146.7062248,0.00020521,3]
[368683649,1751295953475,-392.02510962,0.00020541,2]
[368683650,1751295953495,-966.0,0.00020551,2]
[368683651,1751295953514,-654.0,0.00020551,2]
[368683652,1751295953534,-2151.0,0.00020551,2]
[368683653,1751295953557,-265.0,0.00020582,2]
[368683654,1751295953579,-1019.53,0.00020595,2]
[368683655,1751295953601,-1005.55,0.00020595,2]
[368683656,1751295953626,-741.63,0.00020595,2]
[368683657,1751295953771,-868.22,0.00020595,2]
[368683658,1751295953795,-1506.3,0.00020595,2]
[368683659,1751295953819,-478.08,0.00020595,2]
[368683660,1751295953843,-265.0,0.00020595,2]
[368683661,1751295953868,-460.0,0.00020596,2]
[368683662,1751295953891,-460.0,0.00020596,2]
[368683663,1751295953913,-1021.54,0.00020596,2]
[368683664,1751295953937,-460.0,0.00020597,2]
[368683665,1751295953960,-590.23,0.00020597,2]
[368683666,1751295953982,-926.7,0.00020597,2]
[368683667,1751295954006,-4785.37,0.000206,2]
[368683668,1751295954029,-460.0,0.00020697,2]
[368683669,1751295954054,-542.67,0.00020697,2]
[368683670,1751295954076,-460.0,0.00020697,2]
[368683671,1751295954099,-460.0,0.00020697,2]
[368683672,1751295954122,-460.0,0.00020697,2]
[368683673,1751295954144,-476.35,0.00020697,2]
[368683674,1751295954168,-684.26,0.00020698,2]
[368683675,1751295954190,-1734.18,0.00020698,2]
[368683676,1751295954213,-541.9,0.00020698,2]
[368683677,1751295954235,-460.0,0.00020698,2]
[368683678,1751295954258,-222.28,0.00020698,2]
[368683679,1751295954280,-380.79866265,0.00020699,2]
[368683680,1751295954302,-532.49846188,0.00020718,2]
[368683681,1751295954332,-2146.7062248,0.00020728,3]
[368683682,1751295954354,-206.0,0.0002075,2]
[368683683,1751295954379,-358.0,0.00020821,2]
[368683684,1751295954403,-1019.53,0.00020869,2]
[368683685,1751295954426,-1005.55,0.00020869,2]
[368683686,1751295954448,-741.63,0.00020869,2]
[368683687,1751295954472,-868.22,0.00020869,2]
[368683688,1751295954495,-1506.3,0.00020869,2]
[368683689,1751295954516,-478.08,0.00020869,2]
[368683690,1751295954539,-460.0,0.0002087,2]
[368683691,1751295954561,-460.0,0.0002087,2]